bitfinex-derivatives/quotes_ETHF0:USTF0_20250910
["timestamp","ask_amount","ask_price","bid_price","bid_amount"]
[1757486888968,0.12,4319.8,4319.7,0.7154]
[1757486889277,0.233,4320.0,4319.9,0.7154]
[1757486890073,0.4087,4320.3,4320.2,0.4098]
[1757486890269,0.2133,4320.6,4320.5,0.1264]
[1757486890470,0.2133,4320.6,4320.5,0.5362]
[1757486890680,0.4087,4320.6,4320.5,0.5362]
[1757486890882,0.7048,4320.6,4320.5,0.8418]
[1757486891282,0.7048,4320.6,4320.5,0.5063]
[1757486891879,1.73140558,4320.6,4320.1,0.3056]
[1757486892079,0.7048,4320.1,4319.6,0.3056]
[1757486892275,0.7048,4320.1,4319.5,0.1195]
[1757486892581,0.4087,4320.1,4320.0,0.3271]
[1757486892782,0.4087,4320.1,4320.0,0.5063]
[1757486892783,0.7048,4320.1,4320.0,0.5063]
[1757486892982,0.7048,4320.1,4320.0,0.3056]
[1757486893672,0.7048,4320.1,4320.0,0.5063]
[1757486893871,0.7048,4320.1,4320.0,0.8418]
[1757486894682,0.7048,4320.1,4320.0,0.5063]
[1757486895183,0.9378,4320.1,4320.0,0.5063]
[1757486895379,0.4087,4320.1,4320.0,0.8418]
[1757486897078,0.7056,4320.1,4320.0,0.8418]
[1757486897478,0.7056,4320.1,4320.0,0.7154]
[1757486897679,0.7056,4320.1,4320.0,0.5063]
[1757486898980,0.4087,4320.1,4320.0,0.8411]
[1757486899189,0.7056,4320.1,4320.0,0.8411]
[1757486900189,0.7056,4320.1,4319.6,0.3159]
[1757486900378,0.7056,4320.1,4319.5,0.1195]
[1757486900578,0.58172626,4320.0,4319.6,0.3159]
[1757486900778,0.7073,4319.9,4319.8,0.1977]
[1757486900979,0.7073,4319.9,4319.8,0.5136]
[1757486901580,0.7073,4319.9,4319.8,0.3159]
[1757486902182,0.7073,4319.9,4319.8,0.5136]
[1757486904988,0.7073,4319.9,4319.8,0.7281]
[1757486905281,1.2895567,4319.9,4319.8,0.7281]
[1757486906682,1.2895567,4319.9,4319.8,0.5136]
[1757486909488,1.2895567,4319.9,4319.8,0.7281]
[1757486909687,0.9926567,4319.9,4319.8,0.7281]
[1757486909894,1.2256567,4319.9,4319.8,0.7281]
[1757486910395,1.5225567,4319.9,4319.8,0.7281]
[1757486911897,1.5225567,4319.9,4319.8,0.3159]
[1757486912989,1.5225567,4319.9,4319.8,0.5136]
[1757486916501,1.5225567,4319.9,4319.8,0.7281]
[1757486919304,1.5225567,4319.9,4319.8,0.3159]
[1757486920003,2.54916228,4319.9,4319.8,0.3159]
[1757486920499,2.54916228,4319.9,4319.5,0.3159]
[1757486920804,1.73390558,4319.6,4319.5,0.3159]
[1757486921008,1.73390558,4319.6,4318.5,0.1264]
[1757486921312,0.7073,4319.1,4319.0,0.5386]
[1757486921493,1.2895567,4319.1,4319.0,0.5386]
[1757486921692,1.2895567,4319.1,4319.0,0.8545]
[1757486922397,0.7073,4319.1,4319.0,0.8545]
[1757486924199,1.28970446,4319.1,4319.0,0.3159]
[1757486924699,1.28970446,4319.1,4319.0,0.8484]
[1757486926406,0.58240446,4319.1,4319.0,0.8484]
[1757486926603,0.233,4319.3,4319.1,0.3159]
[1757486926804,0.4373,4319.3,4319.2,0.7281]
[1757486927108,1.01930186,4319.3,4319.2,0.7281]
[1757486929203,0.78630186,4319.3,4319.2,0.7281]
[1757486930006,0.99910186,4319.3,4319.2,0.7281]
[1757486930808,1.31020186,4319.3,4319.2,0.7281]
[1757486931009,2.33680744,4319.3,4319.2,0.5136]
[1757486932411,1.31020186,4319.3,4319.2,0.5136]
[1757486932607,1.31020186,4319.3,4319.2,0.3159]
[1757486932911,1.31020186,4319.3,4319.2,0.5148]
[1757486940619,1.31020186,4319.3,4319.2,0.7111]
[1757486940810,0.99910186,4319.3,4319.2,0.7111]
[1757486942910,1.31020186,4319.3,4319.2,0.7111]
[1757486943312,0.99910186,4319.3,4319.2,0.7111]
[1757486943911,0.58200186,4319.3,4319.2,0.7111]
[1757486944220,1.01890186,4319.3,4319.2,0.7111]
[1757486946416,1.54280186,4319.3,4319.2,0.7111]
[1757486947619,1.54280186,4319.3,4319.2,0.5148]
[1757486949224,1.54280186,4319.3,4319.2,0.7111]
[1757486950023,1.23170186,4319.3,4319.2,0.7111]
[1757486953322,1.54280186,4319.3,4319.2,0.7111]
[1757486954616,0.9608,4319.3,4319.2,0.7111]
[1757486954815,1.54305443,4319.3,4319.2,0.7111]
[1757486960924,1.54305443,4319.3,4319.2,0.3159]
[1757486962030,1.54305443,4319.3,4318.6,0.3006]
[1757486962223,1.54305443,4319.3,4318.0,0.1203]
[1757486962224,0.7151,4318.7,4318.1,0.3006]
[1757486962424,0.2088,4318.3,4318.2,0.64367]
[1757486962625,0.2088,4318.3,4318.2,0.7127]
[1757486964030,0.4107,4318.3,4318.2,0.7127]
[1757486965332,0.7151,4318.3,4318.2,0.7127]
[1757486967825,0.4107,4318.3,4318.2,0.7127]
[1757486968032,0.7151,4318.3,4318.2,0.7127]
[1757486970733,0.7151,4318.3,4318.0,0.1203]
[1757486970734,0.7462,4318.8,4318.7,0.4121]
[1757486970931,1.52844836,4318.8,4318.7,0.5095]
[1757486971126,1.52844836,4318.8,4318.5,0.1206]
[1757486971331,0.2088,4318.2,4318.1,0.7127]
[1757486973241,0.2088,4318.8,4318.7,0.7127]
[1757486973441,1.01801065,4318.8,4318.7,0.7127]
[1757486973940,1.52431065,4318.8,4318.7,0.7127]
[1757486974639,1.52831065,4318.8,4318.7,0.7127]
[1757486978436,1.52831065,4318.8,4318.7,0.5095]
[1757486980740,1.52831065,4318.8,4318.7,0.3006]
[1757486981453,1.29531065,4318.8,4318.7,0.3006]
[1757486981648,1.52831065,4318.8,4318.7,0.3006]
[1757486982352,1.52831065,4318.8,4318.7,0.5095]
[1757486985055,1.52847199,4318.8,4318.7,0.5095]
[1757486985757,1.52847199,4318.8,4318.7,0.3006]
[1757486986849,1.52847199,4318.8,4318.1,0.3006]
[1757486987054,0.2107,4318.2,4318.1,0.7126]
[1757486988454,0.7214,4318.2,4318.1,0.7126]
[1757486989259,0.4262,4318.2,4318.1,0.7126]
[1757486990264,0.7214,4318.2,4318.1,0.7126]
[1757486990961,0.4262,4318.2,4318.1,0.7126]
[1757486991463,0.7214,4318.2,4318.1,0.7126]
[1757486992462,0.7214,4318.2,4318.1,0.5116]
[1757486992865,0.7214,4318.2,4318.1,0.7126]
[1757486995060,0.2952,4318.6,4318.1,0.7126]
[1757486995257,0.7214,4318.9,4318.8,0.211]
[1757486995463,0.7214,4318.6,4318.5,0.3288]
[1757486995663,1.30384961,4318.6,4318.5,0.3288]
[1757486995964,1.30384961,4318.6,4318.5,0.652]
[1757486998968,1.30384961,4318.6,4318.5,0.5342]
[1757487000164,1.30384961,4318.6,4318.5,0.652]
[1757487000367,1.00864961,4318.6,4318.5,0.853]
[1757487000568,0.58244961,4318.6,4318.5,0.853]
[1757487001172,0.79314961,4318.6,4318.5,0.853]
[1757487002669,1.30384961,4318.6,4318.5,0.5342]
[1757487002871,0.7214,4317.8,4317.7,0.5342]
[1757487003171,2.33200664,4317.8,4317.7,0.5342]
[1757487004072,2.33200664,4317.8,4317.7,0.7352]
[1757487004576,2.03680664,4317.8,4317.7,0.7352]
[1757487005576,1.45435703,4317.8,4317.7,0.7352]
[1757487009586,0.2107,4317.8,4317.7,0.7352]
[1757487011281,0.7214,4317.8,4317.7,0.7352]
[1757487011584,0.4262,4317.8,4317.7,0.7352]
[1757487012472,0.4485,4318.0,4317.9,0.412]
[1757487012678,1.68735703,4318.0,4317.9,0.7352]
[1757487012879,2.26872772,4318.0,4317.9,0.7352]
[1757487013380,2.56392772,4318.0,4317.9,0.7352]
[1757487013981,2.56392772,4318.0,4317.5,0.1203]
[1757487014180,1.74955703,4317.7,4317.6,0.5342]
[1757487015280,1.74955703,4317.7,4317.0,0.1206]
[1757487015480,0.7214,4317.7,4317.1,0.3232]
[1757487015678,0.7214,4317.1,4317.0,0.5342]
[1757487015883,0.7214,4317.1,4317.0,0.853]
[1757487016185,0.7214,4317.1,4317.0,0.3232]
[1757487016378,0.7214,4317.1,4316.5,0.1178]
[1757487016579,0.2952,4317.0,4316.6,0.3232]
[1757487016886,1.74955703,4316.9,4316.8,0.412]
[1757487017086,1.74955703,4316.9,4316.8,0.7116]
[1757487018480,1.74955703,4316.9,4316.8,0.2996]
[1757487018685,1.74955703,4316.9,4316.6,0.2996]
[1757487019278,1.74955703,4316.9,4316.5,0.1178]
[1757487019681,1.74955703,4316.9,4316.6,0.2996]
[1757487019987,1.74955703,4316.9,4316.5,0.1178]
[1757487020687,1.74955703,4316.9,4316.6,0.2996]
[1757487021183,1.74955703,4316.9,4316.5,0.1178]
[1757487021384,1.74955703,4316.9,4316.6,0.2996]
[1757487021684,1.74955703,4316.9,4316.5,0.1178]
[1757487022185,1.45435703,4316.9,4316.6,0.2996]
[1757487022382,0.3123,4316.8,4316.7,0.2042]
[1757487022581,0.7071,4316.8,4316.7,0.5038]
[1757487024485,0.7071,4316.8,4316.7,0.7177]
[1757487025691,0.3123,4317.3,4316.8,0.2996]
[1757487025892,0.431,4316.9,4316.8,0.7177]
[1757487027091,0.233,4316.9,4316.8,0.7177]
[1757487028387,1.02815703,4317.2,4316.5,0.1178]
[1757487028388,0.198,4317.2,4317.1,0.7177]
[1757487028589,1.57345703,4317.6,4317.2,0.2996]
[1757487028787,1.96825703,4317.6,4317.5,0.8468]
[1757487028982,2.23845228,4317.6,4317.5,0.8468]
[1757487029187,2.55075228,4317.6,4317.5,0.8468]
[1757487032300,2.55075228,4317.6,4317.5,0.7177]
[1757487032600,2.55075228,4317.6,4317.5,0.5038]
[1757487033698,0.97729525,4317.6,4317.5,0.8468]
[1757487033901,0.6278,4317.6,4317.5,0.8468]
[1757487034089,0.9401,4317.6,4317.5,0.8468]
[1757487036989,0.6278,4317.6,4317.5,0.8468]
[1757487037194,0.9401,4317.6,4317.5,0.8468]
[1757487037495,0.7071,4317.6,4317.5,0.8468]
[1757487037699,0.9401,4317.6,4317.5,0.8468]
[1757487038296,1.52337176,4317.6,4317.5,0.8468]
[1757487038898,0.58327176,4317.6,4317.5,0.8468]
[1757487039096,0.233,4317.6,4317.5,0.8468]
[1757487039497,33.365,4318.0,4317.6,0.2996]
[1757487039805,0.233,4317.9,4317.8,0.4181]
[1757487040005,0.233,4317.9,4317.8,0.7177]
[1757487040507,0.431,4317.9,4317.8,0.7177]
[1757487043206,1.45915703,4317.9,4317.8,0.7177]
[1757487043407,0.3123,4317.8,4317.1,0.2996]
[1757487043602,1.42295703,4317.2,4317.1,0.7177]
[1757487046706,0.3948,4317.2,4317.1,0.7177]
[1757487047805,0.7074,4317.2,4317.1,0.7177]
[1757487050009,0.3948,4317.2,4317.1,0.7177]
[1757487051809,1.73555703,4317.2,4317.1,0.7177]
[1757487052007,1.73555703,4317.2,4317.1,0.5038]
[1757487052601,1.73555703,4317.2,4317.1,0.7109]
[1757487053008,1.42295703,4317.2,4317.1,0.7109]
[1757487053705,0.3948,4317.2,4317.1,0.7109]
[1757487054104,0.3126,4317.1,4317.0,0.1291]
[1757487054302,0.7297,4317.1,4317.0,0.3431]
[1757487054503,0.7297,4317.1,4317.0,0.5502]
[1757487054806,0.4171,4317.1,4317.0,0.8553]
[1757487056203,0.2099,4317.1,4317.0,0.5502]
[1757487057009,0.2099,4317.1,4317.0,0.8553]
[1757487062011,0.233,4317.3,4317.0,0.8553]
[1757487062217,0.7297,4317.2,4317.1,0.5122]
[1757487062513,0.7297,4317.2,4317.1,0.7262]
[1757487071121,0.4171,4317.2,4317.1,0.7262]
[1757487071317,0.2099,4317.2,4317.1,0.7262]
[1757487073216,0.7297,4318.0,4317.9,0.7262]
[1757487073417,1.23391113,4318.0,4317.9,0.7262]
[1757487073614,1.00091113,4318.0,4317.9,0.7262]
[1757487073823,0.79371113,4318.0,4317.9,0.7262]
[1757487074023,1.02671113,4318.0,4317.9,0.7262]
[1757487074226,0.79371113,4318.0,4317.9,0.7262]
[1757487074524,0.5225,4318.5,4318.4,0.4211]
[1757487074724,0.7555,4318.5,4318.4,0.7262]
[1757487074923,1.02678457,4318.5,4318.4,0.7262]
[1757487075715,1.54658457,4318.5,4318.4,0.7262]
[1757487075920,2.76465922,4318.5,4318.4,0.7262]
[1757487076723,2.76465922,4318.5,4318.4,0.5191]
[1757487080230,2.82375922,4318.5,4318.0,0.1258]
[1757487080424,0.7078,4318.2,4318.1,0.3113]
[1757487080619,1.29168457,4318.2,4317.0,0.1291]
[1757487080823,0.7078,4317.2,4317.1,0.5064]
[1757487081023,0.3978,4317.2,4317.1,0.7151]
[1757487081225,0.1955,4317.2,4317.1,0.7151]
[1757487082231,0.1955,4317.6,4317.5,0.5283]
[1757487082443,0.4235,4317.6,4317.5,0.5283]
[1757487082647,0.4235,4317.6,4317.5,0.8396]
[1757487085141,1.00816785,4317.6,4317.5,0.8396]
[1757487086247,0.58466785,4317.6,4317.5,0.8396]
[1757487086748,1.29246785,4317.6,4317.5,0.8396]
[1757487087846,0.98246785,4317.6,4317.5,0.8396]
[1757487089150,1.29246785,4317.6,4317.5,0.8396]
[1757487090051,0.98246785,4317.6,4317.5,0.8396]
[1757487090652,1.29246785,4317.6,4317.5,0.8396]
[1757487095152,0.98246785,4317.6,4317.5,0.8396]
[1757487096355,1.29246785,4317.6,4317.5,0.8396]
[1757487097756,0.98246785,4317.6,4317.5,0.8396]
[1757487101158,0.78016785,4317.6,4317.5,0.8396]
[1757487101359,0.1955,4317.6,4317.5,0.8396]
[1757487101756,0.1955,4318.1,4318.0,0.8396]
[1757487102063,0.233,4318.3,4318.0,0.5283]
[1757487102263,0.233,4318.3,4318.2,0.4038]
[1757487102455,0.81782768,4318.3,4318.2,0.7151]
[1757487103855,1.01332768,4318.3,4318.2,0.7151]
[1757487104157,0.4285,4318.3,4318.2,0.7151]
[1757487105753,1.01322246,4318.3,4318.2,0.7151]
[1757487106161,0.4285,4318.3,4318.2,0.7151]
[1757487107464,1.01321018,4318.3,4318.2,0.7151]
[1757487107869,1.01320943,4318.3,4318.2,0.7151]
[1757487110061,1.54420943,4318.3,4318.2,0.7151]
[1757487110269,2.76228408,4318.3,4318.2,0.5064]
[1757487116365,2.57236798,4318.3,4318.2,0.5064]
[1757487116565,2.57526767,4318.3,4318.2,0.5064]
[1757487118258,2.57526767,4318.3,4317.6,0.3215]
[1757487118468,1.76255855,4317.7,4317.6,0.3215]
[1757487118668,1.99555855,4317.7,4317.6,0.3215]
[1757487119672,1.99555855,4317.7,4317.6,0.5239]
[1757487119974,1.99555855,4317.7,4317.6,0.7281]
[1757487120169,0.6517,4317.7,4317.6,0.7281]
[1757487120357,0.6517,4317.7,4317.5,0.1262]
[1757487120358,0.2034,4318.2,4318.1,0.4066]
[1757487120671,2.58328694,4318.2,4318.1,0.7281]
[1757487121768,2.58328694,4318.2,4318.1,0.5239]
[1757487122775,1.32212839,4318.2,4318.1,0.7281]
[1757487122975,2.58328694,4318.2,4318.1,0.7281]
[1757487126470,2.58328694,4318.2,4317.6,0.3215]
[1757487126672,1.76255855,4317.7,4317.6,0.3215]
[1757487126872,1.99555855,4317.7,4317.6,0.5239]
[1757487127072,1.99555855,4317.7,4317.6,0.7281]
[1757487127373,1.67985855,4317.7,4317.6,0.7281]
[1757487129374,1.99555855,4317.7,4317.6,0.7281]
[1757487132187,1.24582431,4318.9,4318.6,0.4066]
[1757487132374,0.2034,4319.1,4319.0,0.5328]
[1757487132569,1.00679893,4319.1,4319.0,0.5328]
[1757487132978,1.00679893,4319.1,4319.0,0.8543]
[1757487133379,0.79149893,4319.1,4319.0,0.8543]
[1757487133687,0.7344,4319.6,4319.5,0.8543]
[1757487133982,1.23516449,4319.6,4319.5,0.8543]
[1757487134978,1.55086449,4319.6,4319.5,0.8543]
[1757487135378,1.99555855,4319.6,4319.5,0.8543]
[1757487135581,1.99555855,4319.6,4319.5,0.7281]
[1757487140789,0.9674,4319.6,4319.5,0.8525]
[1757487140990,0.6517,4319.6,4319.5,0.8525]
[1757487141381,0.4187,4319.6,4319.5,0.8525]
[1757487141581,0.233,4319.9,4319.5,0.531]
[1757487141778,0.4359,4319.9,4319.8,0.7047]
[1757487141983,0.58169154,4319.9,4319.8,0.7047]
[1757487142191,0.4359,4320.2,4320.1,0.4074]
[1757487142384,0.4359,4320.2,4320.1,0.7047]
[1757487143187,1.98155855,4320.2,4320.1,0.7047]
[1757487143386,1.98155855,4320.2,4320.1,0.2973]
[1757487143589,1.98155855,4320.2,4319.6,0.2973]
[1757487143890,1.74855855,4319.8,4319.7,0.7047]
[1757487149790,1.74855855,4319.8,4319.7,0.2973]
[1757487150291,1.74855855,4319.8,4319.7,0.507]
[1757487152496,1.74855855,4319.8,4319.7,0.7047]
[1757487157004,0.233,4319.8,4319.7,0.4074]
[1757487157707,0.233,4319.8,4319.7,0.7047]
[1757487158007,0.4359,4319.8,4319.7,0.7047]
[1757487158505,0.6364,4319.8,4319.7,0.7047]
[1757487159604,0.9534,4319.8,4319.7,0.7047]
[1757487162313,1.53423906,4319.8,4319.7,0.7047]
[1757487163212,0.9534,4319.8,4319.7,0.7047]
[1757487163408,1.53436964,4319.8,4319.7,0.7047]
[1757487175722,1.53436964,4319.8,4319.7,0.507]
[1757487176013,1.53436964,4319.8,4319.7,0.2973]
[1757487176616,1.53436964,4319.8,4319.1,0.3222]
[1757487176818,0.2143,4319.2,4319.1,0.7337]
[1757487177213,0.2143,4319.2,4319.1,0.96523]
[1757487177517,0.5273,4319.5,4319.1,0.96523]
[1757487177718,0.947,4319.5,4319.4,0.7337]
[1757487178910,1.52689341,4319.5,4319.4,0.7337]
[1757487179218,1.52689341,4319.5,4319.4,0.3222]
[1757487180219,1.52689341,4319.5,4319.4,0.5198]
[1757487182025,2.86080043,4319.5,4319.1,0.3222]
[1757487182218,0.714,4319.3,4319.2,0.5198]
[1757487182417,1.29389341,4319.3,4319.2,0.7337]
[1757487182725,0.99959341,4319.3,4319.2,0.7337]
[1757487183616,1.02719341,4319.3,4319.2,0.7337]
[1757487184127,0.81289341,4319.3,4319.2,0.7337]
[1757487184725,2.46243133,4320.3,4319.5,0.1205]
[1757487184922,0.2143,4319.8,4319.7,0.7337]
[1757487185121,1.29346744,4319.8,4319.7,0.7337]
[1757487185329,1.29346744,4319.8,4319.7,0.5198]
[1757487186926,1.29346744,4319.8,4319.7,0.7337]
[1757487189528,0.99916744,4319.8,4319.7,0.7337]
[1757487189729,0.57946744,4319.8,4319.7,0.7337]
[1757487190527,0.79376744,4319.8,4319.7,0.7337]
[1757487194632,0.99916744,4319.8,4319.7,0.7337]
[1757487194932,0.714,4319.8,4319.7,0.7337]
[1757487195131,1.29338318,4319.8,4319.7,0.7337]
[1757487195331,1.29338318,4319.8,4319.1,0.3222]
[1757487195528,0.2143,4319.2,4319.1,0.7337]
[1757487195731,0.714,4319.2,4319.1,0.7337]
[1757487196334,1.29341814,4319.2,4318.6,0.3222]
[1757487196537,0.57943238,4319.1,4318.6,0.3222]
[1757487196739,0.714,4318.7,4318.6,0.7337]
[1757487197435,0.4197,4318.7,4318.6,0.7337]
[1757487199537,0.2143,4318.7,4318.6,0.7337]
[1757487199735,0.7275,4319.3,4319.2,0.733]
[1757487200035,0.98332798,4319.3,4319.2,0.733]
[1757487200738,0.57912798,4319.3,4319.2,0.733]
[1757487201036,0.4311,4319.6,4319.5,0.8594]
[1757487201237,0.1981,4319.6,4319.5,0.8594]
[1757487201429,0.77717744,4319.6,4319.5,0.8594]
[1757487201626,0.233,4319.9,4319.5,0.5401]
[1757487201931,0.4311,4319.9,4319.8,0.733]
[1757487202529,0.3233,4320.3,4319.8,0.733]
[1757487202734,0.1981,4320.1,4320.0,0.5401]
[1757487202933,0.77711033,4320.1,4320.0,0.8594]
[1757487205738,0.98321033,4320.1,4320.0,0.8594]
[1757487205938,1.30651033,4320.1,4320.0,0.8594]
[1757487212445,0.98321033,4320.1,4320.0,0.8594]
[1757487216048,1.30651033,4320.1,4320.0,0.8594]
[1757487217047,1.30651033,4320.1,4320.0,0.733]
[1757487220050,1.30651033,4320.1,4320.0,0.3193]
[1757487220849,1.30651033,4320.1,4320.0,0.5305]
[1757487222852,1.30651033,4320.1,4320.0,0.8594]
[1757487224655,1.30651033,4320.1,4320.0,0.5305]
[1757487227557,1.30651033,4320.1,4320.0,0.8609]
[1757487231360,1.30651033,4320.1,4319.5,0.1264]
[1757487231653,0.715,4319.7,4319.6,0.7227]
[1757487231858,1.29401033,4319.7,4319.6,0.7227]
[1757487232760,0.99271033,4319.7,4319.6,0.7227]
[1757487236161,1.29401033,4319.7,4319.6,0.7227]
[1757487236558,1.29401033,4319.7,4319.6,0.5157]
[1757487237263,1.29401033,4319.7,4319.6,0.7227]
[1757487239065,1.30572431,4320.5,4319.7,0.3004]
[1757487239066,0.715,4320.4,4319.7,0.3004]
[1757487239255,0.715,4320.4,4320.3,0.2153]
[1757487239656,1.02740401,4320.4,4319.2,1.32780401]
[1757487239868,0.3013,4319.9,4319.3,0.3004]
[1757487240061,0.715,4319.9,4319.8,0.2153]
[1757487240264,0.715,4319.9,4319.8,0.7227]
[1757487241362,0.715,4319.9,4319.8,0.4223]
[1757487241960,0.5071,4319.9,4319.8,0.7227]
[1757487243466,0.715,4319.9,4319.8,0.7227]
[1757487244462,0.3013,4319.9,4319.8,0.7227]
[1757487247262,0.5071,4319.9,4319.8,0.7227]
[1757487247564,0.233,4320.4,4319.9,0.3004]
[1757487247761,0.948,4320.4,4320.3,0.7227]
[1757487249067,0.5071,4320.4,4320.3,0.7227]
[1757487249370,0.3013,4320.4,4320.3,0.7227]
[1757487249570,0.5071,4320.4,4320.3,0.7227]
[1757487251673,0.3013,4320.4,4320.3,0.7227]
[1757487251973,0.5071,4320.4,4320.3,0.7227]
[1757487252174,0.3013,4320.4,4320.3,0.7227]
[1757487253072,0.5071,4320.4,4320.3,0.7227]
[1757487253266,0.3013,4320.4,4320.3,0.7227]
[1757487255480,1.32870401,4320.9,4320.3,0.4223]
[1757487255775,0.948,4320.8,4320.7,0.7227]
[1757487256170,0.948,4320.8,4320.7,0.4223]
[1757487257878,0.948,4320.8,4320.7,0.2153]
[1757487261281,0.715,4320.8,4320.7,0.2153]
[1757487261473,0.948,4320.8,4320.7,0.2153]
[1757487264379,0.948,4320.8,4320.3,0.3172]
[1757487265081,0.2965,4320.7,4320.2,0.3172]
[1757487265277,0.7179,4320.7,4320.6,0.1974]
[1757487266276,0.1287,4320.5,4320.3,0.3172]
[1757487266575,0.2965,4320.4,4319.8,0.3172]
[1757487266781,0.5097,4319.9,4319.8,0.7107]
[1757487267172,0.1287,4319.5,4319.4,0.7107]
[1757487267373,0.8466,4319.5,4319.4,0.7107]
[1757487269277,0.8466,4319.5,4319.4,1.73810401]
[1757487269886,0.8466,4319.5,4319.4,0.7107]
[1757487272389,0.8466,4320.0,4319.9,0.1974]
[1757487273692,0.8466,4320.0,4319.6,0.3172]
[1757487274284,0.8466,4320.0,4319.3,0.7107]
[1757487274285,0.7179,4319.4,4319.3,0.7107]
[1757487276388,0.7179,4319.4,4319.3,0.1974]
[1757487276685,0.5501,4319.0,4318.9,0.1974]
[1757487276887,0.8466,4319.0,4318.9,0.1974]
[1757487277187,0.8466,4319.0,4318.9,0.7107]
[1757487277587,0.8466,4319.0,4318.9,0.3935]
[1757487278181,0.8466,4319.0,4318.9,0.7107]
[1757487279089,0.8466,4319.0,4318.9,0.3935]
[1757487280990,0.8466,4318.5,4318.4,0.1974]
[1757487281195,0.7179,4318.2,4318.1,0.7107]
[1757487281890,0.7179,4318.2,4318.1,0.3935]
[1757487285396,0.7179,4318.2,4318.1,0.7107]
[1757487286697,0.7179,4318.2,4318.1,0.3935]
[1757487287099,0.7179,4318.2,4318.1,0.1974]
[1757487287598,0.8503,4318.0,4317.9,1.23950401]
[1757487289203,0.8503,4318.0,4317.9,1.77350401]
[1757487290204,0.8503,4318.0,4317.9,1.23950401]
[1757487290699,0.8503,4318.0,4317.5,0.233]
[1757487292193,0.8503,4318.0,4317.6,1.02740401]
[1757487292406,0.5296,4317.7,4317.6,1.77350401]
[1757487292607,0.7253,4317.7,4317.6,1.77350401]
[1757487292808,0.7253,4317.7,4317.6,1.45290401]
[1757487293615,0.7253,4317.7,4317.6,1.77350401]
[1757487293815,0.7253,4317.7,4317.6,1.23950401]
[1757487296810,0.7253,4317.7,4317.2,0.3206]
[1757487297015,0.7253,4316.6,4316.5,0.4255]
[1757487297711,0.7253,4316.6,4316.5,0.7461]
[1757487299613,0.3192,4317.4,4316.9,0.3206]
[1757487299812,0.7253,4317.4,4317.3,0.4255]
[1757487305107,0.7253,4317.4,4317.3,0.7461]
[1757487307320,0.7253,4317.4,4317.3,0.4255]
[1757487307618,0.7253,4317.4,4316.8,0.3206]
[1757487307809,0.125,4317.0,4316.8,0.3206]
[1757487308010,0.125,4317.0,4316.9,0.2121]
[1757487308318,0.5311,4317.0,4316.9,0.2121]
[1757487308523,0.8503,4317.0,4316.9,0.2121]
[1757487308916,0.8503,4317.0,4316.9,0.4255]
[1757487309214,0.8503,4317.0,4316.9,0.7461]
[1757487309408,0.125,4317.5,4316.9,0.4255]
[1757487309617,0.3354,4317.5,4317.4,0.4255]
[1757487309814,0.5311,4317.5,4317.4,0.7461]
[1757487310321,0.8503,4317.5,4317.4,0.4255]
[1757487310518,0.8503,4317.5,4317.4,0.7461]
[1757487310722,0.5311,4318.0,4317.9,0.2121]
[1757487310923,0.8503,4318.0,4317.9,0.2121]
[1757487311423,0.3192,4318.0,4317.9,1.96430366]
[1757487311723,0.2104,4318.5,4318.4,0.7461]
[1757487312115,0.5296,4318.5,4318.4,0.7461]
[1757487312422,0.8503,4318.5,4318.4,0.2121]
[1757487313222,0.8503,4318.5,4318.4,0.4255]
[1757487316022,0.8503,4318.5,4318.4,0.7461]
[1757487317122,0.8503,4318.5,4318.1,0.3142]
[1757487318725,0.5311,4318.5,4317.9,1.53240366]
[1757487318923,0.2019,4318.0,4317.9,1.94120366]
[1757487319117,0.5028,4318.0,4317.9,1.94120366]
[1757487319429,0.6222,4318.0,4317.9,1.94120366]
[1757487319814,0.8192,4318.0,4317.9,0.4088]
[1757487320214,0.8192,4318.0,4317.9,0.2131]
[1757487320719,0.2019,4317.0,4316.9,0.2131]
[1757487321020,0.6998,4317.0,4316.8,1.21820366]
[1757487321219,0.3009,4316.7,4316.1,2.3914908]
[1757487321420,0.1194,4316.5,4316.1,0.723]
[1757487321621,0.2019,4316.3,4316.2,0.723]
[1757487321827,0.5028,4316.3,4316.2,0.723]
[1757487326032,0.6998,4316.3,4316.2,0.723]
[1757487327732,0.6998,4316.3,4316.2,0.4088]
[1757487328030,0.6998,4316.3,4316.2,0.2131]
[1757487329427,0.6998,4316.3,4315.7,1.40334507]
[1757487329626,0.3989,4316.3,4315.7,1.40334507]
[1757487329932,0.6998,4316.2,4316.1,0.723]
[1757487330129,0.5028,4316.2,4316.1,1.94120366]
[1757487330333,0.3009,4316.2,4316.1,1.94120366]
[1757487330729,4.63059,4316.2,4315.0,0.3142]
[1757487331029,0.2019,4314.6,4314.5,0.723]
[1757487331236,0.5028,4314.6,4314.5,1.94120366]
[1757487335536,0.3009,4314.9,4314.5,1.62700366]
[1757487335732,0.1194,4315.0,4314.5,1.21820366]
[1757487335933,0.3213,4315.0,4314.9,0.723]
[1757487336337,0.2019,4315.5,4315.4,0.723]
[1757487336538,0.3213,4316.5,4316.4,0.2131]
[1757487336738,0.3213,4316.5,4316.4,0.4088]
[1757487336939,0.8192,4316.5,4316.4,0.4088]
[1757487337136,0.8192,4316.5,4316.4,0.2131]
[1757487340342,0.8192,4316.5,4316.4,0.723]
[1757487341431,0.1194,4317.0,4316.1,1.21820366]
[1757487341432,0.1194,4317.0,4316.5,0.3775]
[1757487341734,0.6222,4317.0,4316.9,1.94120366]
[1757487342139,0.8192,4317.0,4316.9,1.94120366]
[1757487342638,0.5028,4317.0,4316.9,1.94120366]
[1757487343136,0.1194,4316.5,4316.4,0.723]
[1757487343339,0.2019,4316.5,4316.4,0.723]
[1757487343536,0.1194,4317.0,4316.4,0.4088]